[Event "*** Titled Tuesday Blitz"]
[Site "Chess.com"]
[Date "2018.04.03"]
[Round "8"]
[White "TigranLPetrosyan"]
[Black "Abrito99"]
[Result "0-1"]
[WhiteElo "2637"]
[BlackElo "2461"]
[TimeControl "180+2"]
[EndTime "14:44:09 PDT"]
[Termination "Abrito99 won by resignation"]

1. d4 {[%clk 0:03:01.9]} 1... Nf6 {[%clk 0:03:00.9]} 2. Nf3 {[%clk 0:03:03.8]}
2... g6 {[%clk 0:03:01.4]} 3. Bf4 {[%clk 0:03:05.1]} 3... Bg7 {[%clk 0:03:02.6]}
4. e3 {[%clk 0:03:07]} 4... O-O {[%clk 0:03:03.2]} 5. h3 {[%clk 0:03:08.9]} 5...
b6 {[%clk 0:03:04.3]} 6. Bh2 {[%clk 0:03:10.8]} 6... Bb7 {[%clk 0:03:05.9]} 7.
c3 {[%clk 0:03:12.7]} 7... d6 {[%clk 0:03:06.1]} 8. Nbd2 {[%clk 0:03:14.6]} 8...
Nbd7 {[%clk 0:03:07]} 9. Be2 {[%clk 0:03:16.5]} 9... Ne4 {[%clk 0:03:06.2]} 10.
O-O {[%clk 0:03:18.4]} 10... e5 {[%clk 0:03:06.3]} 11. a4 {[%clk 0:03:19.9]}
11... a5 {[%clk 0:03:06.1]} 12. Nxe4 {[%clk 0:03:20.7]} 12... Bxe4 {[%clk
0:03:06.6]} 13. Nd2 {[%clk 0:03:22.6]} 13... Bb7 {[%clk 0:03:07.2]} 14. Bf3
{[%clk 0:03:24]} 14... Qc8 {[%clk 0:03:04.2]} 15. Re1 {[%clk 0:03:22.5]} 15...
Re8 {[%clk 0:03:04.4]} 16. Qb3 {[%clk 0:03:23.2]} 16... e4 {[%clk 0:02:33.6]}
17. Be2 {[%clk 0:03:19.3]} 17... Nf6 {[%clk 0:02:24.5]} 18. Qa2 {[%clk
0:03:14.8]} 18... h5 {[%clk 0:02:22.4]} 19. b4 {[%clk 0:03:14]} 19... Nd5 {[%clk
0:01:58.7]} 20. Qb3 {[%clk 0:03:13.8]} 20... Qd7 {[%clk 0:01:52.1]} 21. Bc4
{[%clk 0:03:11.7]} 21... Qf5 {[%clk 0:01:52.3]} 22. Bxd5 {[%clk 0:03:00.3]}
22... Bxd5 {[%clk 0:01:52.7]} 23. c4 {[%clk 0:03:01.4]} 23... Be6 {[%clk
0:01:52.7]} 24. b5 {[%clk 0:03:01.9]} 24... g5 {[%clk 0:01:53.1]} 25. Rac1
{[%clk 0:03:00.9]} 25... Bf6 {[%clk 0:01:48.9]} 26. Qc2 {[%clk 0:02:58.7]} 26...
Bd7 {[%clk 0:01:48.1]} 27. c5 {[%clk 0:02:59.9]} 27... bxc5 {[%clk 0:01:19.2]}
28. dxc5 {[%clk 0:03:01.6]} 28... g4 {[%clk 0:01:20.8]} 29. hxg4 {[%clk
0:02:57.5]} 29... Qxg4 {[%clk 0:01:22.3]} 30. cxd6 {[%clk 0:02:57.7]} 30... cxd6
{[%clk 0:01:22.4]} 31. Bxd6 {[%clk 0:02:54.3]} 31... h4 {[%clk 0:01:19.7]} 32.
Qd1 {[%clk 0:02:46.7]} 32... Qg6 {[%clk 0:01:19.8]} 33. Rc5 {[%clk 0:02:44.8]}
33... Bg4 {[%clk 0:01:17.3]} 34. Qb3 {[%clk 0:02:14.2]} 34... Rad8 {[%clk
0:01:14.2]} 35. Rc6 {[%clk 0:01:54]} 35... Re6 {[%clk 0:01:14.7]} 36. b6 {[%clk
0:01:53.1]} 36... Bf3 {[%clk 0:01:05.7]} 37. Nxf3 {[%clk 0:00:59.4]} 37... exf3
{[%clk 0:01:06.9]} 38. g3 {[%clk 0:00:56.9]} 38... hxg3 {[%clk 0:01:06.5]} 39.
Bxg3 {[%clk 0:00:56.2]} 39... Rxc6 {[%clk 0:01:06.4]} 40. b7 {[%clk 0:00:57.5]}
40... Be5 {[%clk 0:01:07.6]} 41. Rd1 {[%clk 0:00:51.8]} 41... Rxd1+ {[%clk
0:00:58.7]} 42. Qxd1 {[%clk 0:00:51.8]} 42... Bxg3 {[%clk 0:00:59.9]} 43. Qxf3
{[%clk 0:00:45]} 43... Rc1+ {[%clk 0:01:00]} 0-1

[Event "*** Titled Tuesday Blitz"]
[Site "Chess.com"]
[Date "2018.04.03"]
[Round "8"]
[White "Manukyan_Artak"]
[Black "Mikhail_Golubev"]
[Result "0-1"]
[WhiteElo "2371"]
[BlackElo "2295"]
[TimeControl "180+2"]
[EndTime "14:44:16 PDT"]
[Termination "Mikhail_Golubev won by resignation"]

1. e4 {[%clk 0:03:01.9]} 1... c5 {[%clk 0:02:58]} 2. Nf3 {[%clk 0:03:02.7]} 2...
d6 {[%clk 0:02:57.7]} 3. Bb5+ {[%clk 0:03:03]} 3... Bd7 {[%clk 0:02:55.6]} 4.
Bxd7+ {[%clk 0:03:03.6]} 4... Nxd7 {[%clk 0:02:56.4]} 5. c4 {[%clk 0:03:05.5]}
5... Ngf6 {[%clk 0:02:39.9]} 6. Nc3 {[%clk 0:03:05.8]} 6... e6 {[%clk 0:02:31]}
7. O-O {[%clk 0:03:01.9]} 7... Be7 {[%clk 0:02:29.9]} 8. d3 {[%clk 0:02:56.4]}
8... O-O {[%clk 0:02:29]} 9. h3 {[%clk 0:02:46.3]} 9... a6 {[%clk 0:02:29]} 10.
a4 {[%clk 0:02:46]} 10... Ne5 {[%clk 0:02:21.9]} 11. Bf4 {[%clk 0:02:41.8]}
11... Nc6 {[%clk 0:02:21.2]} 12. Bh2 {[%clk 0:02:32.2]} 12... Qb6 {[%clk
0:02:18.9]} 13. Qd2 {[%clk 0:02:24.9]} 13... Nd7 {[%clk 0:02:17.6]} 14. Nd1
{[%clk 0:01:43.6]} 14... Na5 {[%clk 0:02:07]} 15. Rb1 {[%clk 0:01:40.2]} 15...
Bf6 {[%clk 0:01:59.5]} 16. Ne3 {[%clk 0:01:33]} 16... Nb3 {[%clk 0:01:50.9]} 17.
Qc2 {[%clk 0:01:33.1]} 17... Ne5 {[%clk 0:01:51.4]} 18. Bxe5 {[%clk 0:01:28.1]}
18... Bxe5 {[%clk 0:01:47.8]} 19. Ng4 {[%clk 0:01:28.7]} 19... Nd4 {[%clk
0:01:41.4]} 20. Nxd4 {[%clk 0:01:28.3]} 20... Bxd4 {[%clk 0:01:42.1]} 21. Ne3
{[%clk 0:01:27.4]} 21... g6 {[%clk 0:01:34.4]} 22. b3 {[%clk 0:01:20.4]} 22...
f5 {[%clk 0:01:34.7]} 23. Qe2 {[%clk 0:01:16.4]} 23... f4 {[%clk 0:01:31.5]} 24.
Nc2 {[%clk 0:01:17.3]} 24... f3 {[%clk 0:01:27.4]} 25. gxf3 {[%clk 0:01:17.3]}
25... Be5 {[%clk 0:01:28.3]} 26. Kh1 {[%clk 0:00:57.9]} 26... Qd8 {[%clk
0:01:26.5]} 27. f4 {[%clk 0:00:48.8]} 27... Rxf4 {[%clk 0:01:24]} 28. f3 {[%clk
0:00:48.7]} 28... Qh4 {[%clk 0:01:13.5]} 29. Qg2 {[%clk 0:00:49]} 29... Qh6
{[%clk 0:01:14]} 30. Ne3 {[%clk 0:00:18.8]} 30... Rh4 {[%clk 0:01:13.9]} 31. Ng4
{[%clk 0:00:19.9]} 31... Rxh3+ {[%clk 0:01:14.6]} 32. Kg1 {[%clk 0:00:21]} 32...
Bd4+ {[%clk 0:01:14.3]} 33. Rf2 {[%clk 0:00:22.3]} 33... Qh4 {[%clk 0:01:05.8]}
34. Kf1 {[%clk 0:00:19.6]} 34... Rh1+ {[%clk 0:01:01.9]} 35. Ke2 {[%clk
0:00:19.9]} 35... Rxb1 {[%clk 0:01:01.4]} 0-1

[Event "*** Titled Tuesday Blitz"]
[Site "Chess.com"]
[Date "2018.04.03"]
[Round "8"]
[White "Bauxi435"]
[Black "ruvat"]
[Result "0-1"]
[WhiteElo "2413"]
[BlackElo "2282"]
[TimeControl "180+2"]
[EndTime "14:44:43 PDT"]
[Termination "ruvat won by resignation"]

1. d4 {[%clk 0:03:01.9]} 1... d6 {[%clk 0:03:00.8]} 2. c4 {[%clk 0:02:59.9]}
2... e5 {[%clk 0:03:01.3]} 3. Nf3 {[%clk 0:02:55.3]} 3... e4 {[%clk 0:03:01.2]}
4. Nfd2 {[%clk 0:02:54.3]} 4... f5 {[%clk 0:03:01.7]} 5. Nc3 {[%clk 0:02:54.9]}
5... Nf6 {[%clk 0:03:02.3]} 6. e3 {[%clk 0:02:54.8]} 6... g6 {[%clk 0:03:03.1]}
7. Be2 {[%clk 0:02:54.6]} 7... Bg7 {[%clk 0:03:04]} 8. h4 {[%clk 0:02:55.9]}
8... c5 {[%clk 0:03:02.9]} 9. d5 {[%clk 0:02:52.7]} 9... Nbd7 {[%clk 0:02:51.5]}
10. h5 {[%clk 0:02:52.5]} 10... O-O {[%clk 0:02:48.6]} 11. hxg6 {[%clk
0:02:50.1]} 11... hxg6 {[%clk 0:02:49]} 12. f4 {[%clk 0:02:45]} 12... exf3
{[%clk 0:02:46.9]} 13. gxf3 {[%clk 0:02:45.8]} 13... Ne5 {[%clk 0:02:44.1]} 14.
Kf2 {[%clk 0:02:44.8]} 14... Bd7 {[%clk 0:02:32.9]} 15. Qg1 {[%clk 0:02:43.3]}
15... Qe7 {[%clk 0:02:30.6]} 16. Qh2 {[%clk 0:02:34.6]} 16... Rae8 {[%clk
0:02:11.7]} 17. Nf1 {[%clk 0:02:29.2]} 17... Kf7 {[%clk 0:02:01.2]} 18. Bd2
{[%clk 0:02:25.9]} 18... Rh8 {[%clk 0:02:01.7]} 19. Qg2 {[%clk 0:02:26.9]} 19...
Rxh1 {[%clk 0:02:02.5]} 20. Qxh1 {[%clk 0:02:28.8]} 20... Rh8 {[%clk 0:02:03.1]}
21. Qg2 {[%clk 0:02:30.2]} 21... Nh5 {[%clk 0:01:58.2]} 22. Ng3 {[%clk
0:02:28.3]} 22... Nxg3 {[%clk 0:01:33.7]} 23. Qxg3 {[%clk 0:02:28.3]} 23... Qh4
{[%clk 0:01:31.4]} 24. Qxh4 {[%clk 0:02:13]} 24... Rxh4 {[%clk 0:01:33.3]} 25.
Kg3 {[%clk 0:02:13.8]} 25... Bf6 {[%clk 0:01:29.1]} 26. e4 {[%clk 0:02:01.3]}
26... g5 {[%clk 0:00:39]} 27. exf5 {[%clk 0:01:49.8]} 27... Bxf5 {[%clk
0:00:37.9]} 28. b3 {[%clk 0:01:13.8]} 28... a6 {[%clk 0:00:36.6]} 29. Bf1 {[%clk
0:01:01.2]} 29... Ng6 {[%clk 0:00:32]} 30. Re1 {[%clk 0:00:59.9]} 30... Be5+
{[%clk 0:00:28.7]} 31. Kf2 {[%clk 0:00:40.7]} 31... Rh2+ {[%clk 0:00:28.3]} 32.
Bg2 {[%clk 0:00:39.5]} 32... Nh4 {[%clk 0:00:26]} 33. Rg1 {[%clk 0:00:39.8]}
33... Bd4+ {[%clk 0:00:26.5]} 34. Be3 {[%clk 0:00:30.7]} 34... Bxe3+ {[%clk
0:00:26.9]} 35. Kxe3 {[%clk 0:00:31.7]} 35... Rxg2 {[%clk 0:00:26.6]} 36. Rh1
{[%clk 0:00:29.1]} 36... Rc2 {[%clk 0:00:26.5]} 37. Ne2 {[%clk 0:00:29.9]} 37...
Ng2+ {[%clk 0:00:22.4]} 38. Kf2 {[%clk 0:00:30.3]} 38... Nf4 {[%clk 0:00:22.9]}
39. Kg3 {[%clk 0:00:31.3]} 39... Nxe2+ {[%clk 0:00:23.2]} 40. Kf2 {[%clk
0:00:31.2]} 0-1

[Event "*** Titled Tuesday Blitz"]
[Site "Chess.com"]
[Date "2018.04.03"]
[Round "8"]
[White "lachesisQ"]
[Black "GMHess"]
[Result "0-1"]
[WhiteElo "2898"]
[BlackElo "2559"]
[TimeControl "180+2"]
[EndTime "14:44:45 PDT"]
[Termination "GMHess won by resignation"]

1. e4 {[%clk 0:03:01.9]} 1... e5 {[%clk 0:02:56.3]} 2. Nf3 {[%clk 0:03:02.9]}
2... Nc6 {[%clk 0:02:57.5]} 3. d4 {[%clk 0:03:04]} 3... exd4 {[%clk 0:02:59.4]}
4. Nxd4 {[%clk 0:03:05.8]} 4... Nf6 {[%clk 0:03:00.2]} 5. Nxc6 {[%clk
0:03:06.6]} 5... bxc6 {[%clk 0:03:00.4]} 6. e5 {[%clk 0:03:07.9]} 6... Qe7
{[%clk 0:03:00.5]} 7. Qe2 {[%clk 0:03:09.3]} 7... Nd5 {[%clk 0:03:02]} 8. c4
{[%clk 0:03:10.5]} 8... Nb6 {[%clk 0:03:03.4]} 9. g3 {[%clk 0:03:10.4]} 9... Bb7
{[%clk 0:02:43.2]} 10. Bg2 {[%clk 0:03:11]} 10... O-O-O {[%clk 0:02:44.1]} 11.
O-O {[%clk 0:03:10.8]} 11... f6 {[%clk 0:02:15.6]} 12. f4 {[%clk 0:03:03.6]}
12... fxe5 {[%clk 0:02:12.2]} 13. fxe5 {[%clk 0:03:03.4]} 13... Qc5+ {[%clk
0:02:13.3]} 14. Be3 {[%clk 0:03:04.4]} 14... Qxc4 {[%clk 0:02:13.9]} 15. Qf2
{[%clk 0:03:01.6]} 15... Bb4 {[%clk 0:02:09.6]} 16. Nd2 {[%clk 0:03:00.5]} 16...
Qb5 {[%clk 0:01:34.3]} 17. Nf3 {[%clk 0:02:48.5]} 17... Rhf8 {[%clk 0:01:26.8]}
18. a3 {[%clk 0:02:46.6]} 18... Be7 {[%clk 0:01:26.3]} 19. b4 {[%clk 0:02:47.6]}
19... Nc4 {[%clk 0:01:20.8]} 20. Bd4 {[%clk 0:02:41.5]} 20... g5 {[%clk
0:00:56.5]} 21. a4 {[%clk 0:02:39.4]} 21... Qd5 {[%clk 0:00:54.2]} 22. Bc3
{[%clk 0:01:36.3]} 22... g4 {[%clk 0:00:44]} 23. a5 {[%clk 0:01:13.9]} 23... a6
{[%clk 0:00:26.7]} 24. Rad1 {[%clk 0:01:11.6]} 24... Rxf3 {[%clk 0:00:20]} 25.
Bxf3 {[%clk 0:01:00.6]} 25... Qxf3 {[%clk 0:00:21.9]} 26. Qxf3 {[%clk
0:00:51.5]} 26... gxf3 {[%clk 0:00:23.8]} 27. Rxf3 {[%clk 0:00:53.3]} 27... c5
{[%clk 0:00:25]} 28. Rf7 {[%clk 0:00:54.2]} 28... Bg5 {[%clk 0:00:19]} 29. h4
{[%clk 0:00:46.1]} 29... Be3+ {[%clk 0:00:18.8]} 30. Kh2 {[%clk 0:00:47.4]}
30... cxb4 {[%clk 0:00:19]} 31. Ba1 {[%clk 0:00:42.6]} 31... b3 {[%clk
0:00:18.8]} 32. Rb1 {[%clk 0:00:43.1]} 32... Nd2 {[%clk 0:00:18.6]} 33. Re1
{[%clk 0:00:44]} 33... Ba7 {[%clk 0:00:15.3]} 34. Kh3 {[%clk 0:00:42.1]} 34...
h5 {[%clk 0:00:16]} 35. g4 {[%clk 0:00:40.9]} 35... Bd5 {[%clk 0:00:15.8]} 36.
e6 {[%clk 0:00:31.4]} 36... Bxe6 {[%clk 0:00:13.4]} 37. Rxe6 {[%clk 0:00:32.5]}
37... hxg4+ {[%clk 0:00:14.9]} 38. Kxg4 {[%clk 0:00:33.1]} 38... dxe6 {[%clk
0:00:16.8]} 39. h5 {[%clk 0:00:34.6]} 39... Bd4 {[%clk 0:00:17.8]} 0-1

[Event "*** Titled Tuesday Blitz"]
[Site "Chess.com"]
[Date "2018.04.03"]
[Round "8"]
[White "Hikaru"]
[Black "Zaven_ChessMood"]
[Result "1-0"]
[WhiteElo "2988"]
[BlackElo "2811"]
[TimeControl "180+2"]
[EndTime "14:44:47 PDT"]
[Termination "Hikaru won by resignation"]

1. b3 {[%clk 0:03:01.9]} 1... e5 {[%clk 0:02:57.3]} 2. Bb2 {[%clk 0:02:56.2]}
2... Nc6 {[%clk 0:02:58.6]} 3. e3 {[%clk 0:02:58.1]} 3... Nf6 {[%clk 0:02:59]}
4. Bb5 {[%clk 0:02:59.5]} 4... Bd6 {[%clk 0:02:59.8]} 5. Na3 {[%clk 0:03:00.9]}
5... a6 {[%clk 0:02:57.8]} 6. Bxc6 {[%clk 0:03:02]} 6... dxc6 {[%clk 0:02:58.6]}
7. Nc4 {[%clk 0:03:03.9]} 7... e4 {[%clk 0:02:53.3]} 8. Ne2 {[%clk 0:03:05.3]}
8... O-O {[%clk 0:02:46.3]} 9. h3 {[%clk 0:02:58.1]} 9... Re8 {[%clk 0:02:45.8]}
10. O-O {[%clk 0:02:57.6]} 10... b5 {[%clk 0:02:43.7]} 11. Nxd6 {[%clk
0:02:58.5]} 11... cxd6 {[%clk 0:02:44.7]} 12. Ng3 {[%clk 0:02:56.6]} 12... d5
{[%clk 0:02:38.6]} 13. f3 {[%clk 0:02:57]} 13... Qd6 {[%clk 0:02:28.3]} 14. Qe1
{[%clk 0:02:55.6]} 14... Ra7 {[%clk 0:02:17.4]} 15. Bxf6 {[%clk 0:02:53.6]}
15... Qxf6 {[%clk 0:02:14.4]} 16. fxe4 {[%clk 0:02:54.8]} 16... Qg6 {[%clk
0:02:11]} 17. exd5 {[%clk 0:02:53.4]} 17... cxd5 {[%clk 0:02:11.6]} 18. c3
{[%clk 0:02:54.7]} 18... a5 {[%clk 0:02:07.6]} 19. Rf4 {[%clk 0:02:50]} 19... a4
{[%clk 0:01:59.7]} 20. b4 {[%clk 0:02:49.7]} 20... a3 {[%clk 0:01:59.5]} 21. Kh2
{[%clk 0:02:50.5]} 21... Rae7 {[%clk 0:01:53.5]} 22. Ne2 {[%clk 0:02:51]} 22...
Bf5 {[%clk 0:01:50.2]} 23. Qg3 {[%clk 0:02:50.3]} 23... Be4 {[%clk 0:01:35.7]}
24. Qxg6 {[%clk 0:02:47]} 24... hxg6 {[%clk 0:01:36.7]} 25. Nd4 {[%clk
0:02:48.6]} 25... Bd3 {[%clk 0:01:31.5]} 26. Nb3 {[%clk 0:02:47.2]} 26... f6
{[%clk 0:01:26.7]} 27. Nc5 {[%clk 0:02:45.8]} 27... Be4 {[%clk 0:01:23.9]} 28.
Rff1 {[%clk 0:02:35.7]} 28... g5 {[%clk 0:01:22.8]} 29. g4 {[%clk 0:02:27.3]}
29... Kf7 {[%clk 0:01:20.6]} 30. Kg3 {[%clk 0:02:28.6]} 30... Kg6 {[%clk
0:01:20.3]} 31. Rae1 {[%clk 0:02:24.2]} 31... Kf7 {[%clk 0:01:17.3]} 32. Rf2
{[%clk 0:02:17.9]} 32... Bg6 {[%clk 0:01:15.6]} 33. Rfe2 {[%clk 0:02:18.1]}
33... Rh8 {[%clk 0:01:10]} 34. Rh2 {[%clk 0:02:19]} 34... Rhe8 {[%clk 0:01:07]}
35. h4 {[%clk 0:02:18.6]} 35... gxh4+ {[%clk 0:01:08.1]} 36. Rxh4 {[%clk
0:02:20.5]} 36... Rc8 {[%clk 0:01:04.2]} 37. Reh1 {[%clk 0:02:20.8]} 37... Ra7
{[%clk 0:00:59.8]} 38. g5 {[%clk 0:02:14.2]} 38... fxg5 {[%clk 0:00:56.6]} 39.
Rg4 {[%clk 0:02:13.9]} 39... Be4 {[%clk 0:00:51.3]} 40. Nxe4 {[%clk 0:02:07.3]}
40... dxe4 {[%clk 0:00:52.3]} 41. Rxe4 {[%clk 0:02:08.8]} 41... Rd8 {[%clk
0:00:48.3]} 42. Rf1+ {[%clk 0:02:08.2]} 42... Kg6 {[%clk 0:00:46.9]} 43. Rf2
{[%clk 0:01:47.6]} 43... Ra6 {[%clk 0:00:43.7]} 44. Rd4 {[%clk 0:01:46.7]} 44...
Rh8 {[%clk 0:00:42]} 45. Rd5 {[%clk 0:01:43.9]} 45... Rh1 {[%clk 0:00:34.4]} 46.
Rxb5 {[%clk 0:01:44.7]} 46... Rb1 {[%clk 0:00:28.1]} 47. Ra5 {[%clk 0:01:42.7]}
47... Rd6 {[%clk 0:00:22]} 48. Rxa3 {[%clk 0:01:39.8]} 48... Rg1+ {[%clk
0:00:22.2]} 49. Rg2 {[%clk 0:01:36.1]} 49... Rh1 {[%clk 0:00:20.2]} 50. b5
{[%clk 0:01:36.2]} 50... Rf6 {[%clk 0:00:20.3]} 51. Ra6 {[%clk 0:01:37.2]} 51...
Rb1 {[%clk 0:00:15.3]} 52. c4 {[%clk 0:01:35.7]} 52... Kf5 {[%clk 0:00:15.5]}
53. Rf2+ {[%clk 0:01:35.9]} 53... Ke5 {[%clk 0:00:16.6]} 54. d4+ {[%clk
0:01:36.2]} 54... Ke4 {[%clk 0:00:17.6]} 55. Raxf6 {[%clk 0:01:36.8]} 55... gxf6
{[%clk 0:00:19.2]} 56. Rxf6 {[%clk 0:01:38.1]} 1-0

[Event "*** Titled Tuesday Blitz"]
[Site "Chess.com"]
[Date "2018.04.03"]
[Round "8"]
[White "Tramontanaaa"]
[Black "Noukii"]
[Result "0-1"]
[WhiteElo "2367"]
[BlackElo "2595"]
[TimeControl "180+2"]
[EndTime "14:44:57 PDT"]
[Termination "Noukii won by resignation"]

1. e4 {[%clk 0:03:01.9]} 1... c6 {[%clk 0:02:49]} 2. Nc3 {[%clk 0:03:01.9]} 2...
d5 {[%clk 0:02:50.1]} 3. Nf3 {[%clk 0:03:02.7]} 3... Nf6 {[%clk 0:02:51.6]} 4.
e5 {[%clk 0:03:03.5]} 4... Ne4 {[%clk 0:02:53.1]} 5. Ne2 {[%clk 0:03:04.4]} 5...
Qb6 {[%clk 0:02:54.2]} 6. d4 {[%clk 0:03:05.1]} 6... Bf5 {[%clk 0:02:44.6]} 7.
Nh4 {[%clk 0:02:44.6]} 7... Be6 {[%clk 0:02:40]} 8. f3 {[%clk 0:02:42.7]} 8...
g5 {[%clk 0:02:40.8]} 9. fxe4 {[%clk 0:02:40.1]} 9... gxh4 {[%clk 0:02:42.1]}
10. Nf4 {[%clk 0:02:37.3]} 10... Bd7 {[%clk 0:02:38.7]} 11. e6 {[%clk
0:02:37.1]} 11... Bxe6 {[%clk 0:02:38.5]} 12. Nxe6 {[%clk 0:02:36.8]} 12... fxe6
{[%clk 0:02:40.4]} 13. Qh5+ {[%clk 0:02:37.3]} 13... Kd7 {[%clk 0:02:42]} 14.
exd5 {[%clk 0:02:32.7]} 14... cxd5 {[%clk 0:02:35.1]} 15. Qxh4 {[%clk 0:02:31]}
15... Bg7 {[%clk 0:02:35.9]} 16. c3 {[%clk 0:02:31.2]} 16... Bf6 {[%clk
0:02:35.8]} 17. Qg4 {[%clk 0:02:27.1]} 17... Nc6 {[%clk 0:02:36.1]} 18. Bd3
{[%clk 0:02:16.9]} 18... Rhg8 {[%clk 0:02:37.4]} 19. Qh3 {[%clk 0:02:17.9]}
19... Raf8 {[%clk 0:02:19.7]} 20. Kd1 {[%clk 0:02:12.3]} 20... Kd8 {[%clk
0:02:11.9]} 21. Qxe6 {[%clk 0:02:05.9]} 21... Bh8 {[%clk 0:01:48.9]} 22. Qxd5+
{[%clk 0:02:05.4]} 22... Kc8 {[%clk 0:01:49.2]} 23. Bf5+ {[%clk 0:01:57.7]}
23... Kb8 {[%clk 0:01:50.3]} 24. Kc2 {[%clk 0:01:35.7]} 24... e5 {[%clk
0:01:32.7]} 25. Be6 {[%clk 0:01:26.4]} 25... Rd8 {[%clk 0:01:19.3]} 26. Qe4
{[%clk 0:01:18.2]} 26... Nxd4+ {[%clk 0:01:12.8]} 27. cxd4 {[%clk 0:01:16.5]}
27... Qxe6 {[%clk 0:01:14.3]} 28. dxe5 {[%clk 0:00:57.2]} 28... Rxg2+ {[%clk
0:00:58.2]} 29. Kb1 {[%clk 0:00:40.7]} 29... Rg4 {[%clk 0:00:57.8]} 30. Qxh7
{[%clk 0:00:36.7]} 30... Qxe5 {[%clk 0:00:43.3]} 31. Rf1 {[%clk 0:00:20.4]}
31... Rc8 {[%clk 0:00:23.3]} 32. Rf2 {[%clk 0:00:09.1]} 32... Rxc1+ {[%clk
0:00:20.1]} 33. Kxc1 {[%clk 0:00:09.3]} 33... Qe1+ {[%clk 0:00:21.7]} 34. Kc2
{[%clk 0:00:09.1]} 34... Qxf2+ {[%clk 0:00:22.8]} 35. Kd3 {[%clk 0:00:09.7]}
35... Qf3+ {[%clk 0:00:23.3]} 0-1

[Event "*** Titled Tuesday Blitz"]
[Site "Chess.com"]
[Date "2018.04.03"]
[Round "8"]
[White "ViktorMatviishen"]
[Black "TST2014"]
[Result "0-1"]
[WhiteElo "2552"]
[BlackElo "2354"]
[TimeControl "180+2"]
[EndTime "14:45:07 PDT"]
[Termination "TST2014 won by resignation"]

1. d4 {[%clk 0:03:01.9]} 1... d6 {[%clk 0:02:59.2]} 2. c4 {[%clk 0:03:02.6]}
2... e5 {[%clk 0:02:58.4]} 3. Nf3 {[%clk 0:03:03.4]} 3... Nd7 {[%clk 0:02:59.5]}
4. Nc3 {[%clk 0:03:03.5]} 4... Ngf6 {[%clk 0:03:00.7]} 5. e4 {[%clk 0:03:04]}
5... Be7 {[%clk 0:03:02]} 6. g3 {[%clk 0:03:03.7]} 6... O-O {[%clk 0:03:02.3]}
7. Bg2 {[%clk 0:03:04.9]} 7... c6 {[%clk 0:03:02.1]} 8. O-O {[%clk 0:03:04.9]}
8... Qc7 {[%clk 0:03:03.5]} 9. Re1 {[%clk 0:03:03.2]} 9... a6 {[%clk 0:03:01.7]}
10. a4 {[%clk 0:02:56]} 10... a5 {[%clk 0:03:01.3]} 11. Be3 {[%clk 0:02:48.9]}
11... Ng4 {[%clk 0:03:00.6]} 12. Bc1 {[%clk 0:02:46.5]} 12... Re8 {[%clk
0:02:59.2]} 13. h3 {[%clk 0:02:47.2]} 13... Ngf6 {[%clk 0:02:59.6]} 14. Be3
{[%clk 0:02:48.8]} 14... Bf8 {[%clk 0:02:54.9]} 15. Qc2 {[%clk 0:02:49.3]} 15...
h6 {[%clk 0:02:55.1]} 16. Rad1 {[%clk 0:02:48.3]} 16... g6 {[%clk 0:02:49.4]}
17. c5 {[%clk 0:02:37.8]} 17... dxc5 {[%clk 0:02:40.2]} 18. dxe5 {[%clk
0:02:37.7]} 18... Nxe5 {[%clk 0:02:38.6]} 19. Nxe5 {[%clk 0:02:33.5]} 19... Qxe5
{[%clk 0:02:37.7]} 20. Bf4 {[%clk 0:02:33.5]} 20... Qe6 {[%clk 0:02:36.4]} 21.
e5 {[%clk 0:02:24.8]} 21... Nd7 {[%clk 0:02:32.5]} 22. Ne4 {[%clk 0:02:20.5]}
22... g5 {[%clk 0:02:13.3]} 23. Bd2 {[%clk 0:01:12.5]} 23... Nxe5 {[%clk
0:02:04.6]} 24. Bc3 {[%clk 0:01:12.7]} 24... Qg6 {[%clk 0:02:00.6]} 25. Bxe5
{[%clk 0:00:30.4]} 25... Rxe5 {[%clk 0:01:59.6]} 26. Rd8 {[%clk 0:00:31.4]}
26... f5 {[%clk 0:01:47.6]} 27. Qc3 {[%clk 0:00:32.2]} 27... Re6 {[%clk
0:01:29.9]} 28. Nxc5 {[%clk 0:00:20]} 28... Rxe1+ {[%clk 0:01:24.8]} 29. Qxe1
{[%clk 0:00:21.9]} 29... Qf6 {[%clk 0:01:06.3]} 30. Qe8 {[%clk 0:00:22.5]} 30...
Bd7 {[%clk 0:01:04.7]} 31. Nxd7 {[%clk 0:00:20.7]} 31... Qxd8 {[%clk 0:01:04]}
32. Qg6+ {[%clk 0:00:21.7]} 32... Bg7 {[%clk 0:01:04.4]} 33. Qxf5 {[%clk
0:00:19.8]} 33... Qe7 {[%clk 0:01:03.6]} 34. Bf1 {[%clk 0:00:21.1]} 34... Rd8
{[%clk 0:01:01.6]} 35. Bc4+ {[%clk 0:00:21.9]} 35... Kh8 {[%clk 0:01:03.1]} 36.
Be6 {[%clk 0:00:23.4]} 36... Re8 {[%clk 0:01:02.2]} 37. Bf7 {[%clk 0:00:19.6]}
37... Qe1+ {[%clk 0:01:00.7]} 38. Kg2 {[%clk 0:00:21]} 38... Qe4+ {[%clk
0:01:00.9]} 39. Qxe4 {[%clk 0:00:22.4]} 39... Rxe4 {[%clk 0:01:02.4]} 40. Nc5
{[%clk 0:00:24]} 40... Rb4 {[%clk 0:01:02.2]} 41. b3 {[%clk 0:00:23.9]} 41...
Bf8 {[%clk 0:00:57.8]} 42. Nd7 {[%clk 0:00:20]} 42... Bd6 {[%clk 0:00:53.8]} 43.
Be6 {[%clk 0:00:17.8]} 43... b5 {[%clk 0:00:50.3]} 44. Nb6 {[%clk 0:00:17.5]}
44... Kg7 {[%clk 0:00:47.9]} 45. Kf3 {[%clk 0:00:17.1]} 45... Kf6 {[%clk
0:00:48.2]} 46. Bg8 {[%clk 0:00:18.2]} 46... Ke5 {[%clk 0:00:47.9]} 47. Ke3
{[%clk 0:00:18.6]} 47... Bc5+ {[%clk 0:00:48.4]} 48. Kd3 {[%clk 0:00:19.9]}
48... Bxb6 {[%clk 0:00:49.7]} 0-1